Cogmind - Beta 10.2 @@@ ROGUE MODE // 2020.10.29 @ 23:48:26 // Halloween2020/ForbiddenLore Player: JackNine Result: Self-destructed Performance ------------- Evolutions (3) 1500 Regions Visited (6) 1200 Robots Destroyed (129) 645 Value Destroyed (4665) 4665 Prototype IDs (10) 200 Alien Tech Used (0) 0 Bonus (1497) 1497 TOTAL SCORE: 9707 Bonus ------- High Alert Combat Kills 1497 Cogmind --------- Core Integrity 169/700 Matter 3/300 Energy 28/160 System Corruption 8% Temperature Cool (0) Movement Core (850) Ox16 Location -7/Factory Parts ------- > --- POWER (2) -------- Light Nuclear Core > --- PROPULSION (4) --- (None) > --- UTILITY (5) ------ Medium Storage Unit High-capacity Storage Unit Hacking Suite Hacking Suite > --- WEAPON (2) ------- Enhanced Autogun Enhanced Autogun > --- INVENTORY (16) --- Light Nuclear Core Micro Nuclear Core Airjet Aerolev Unit Gravmag System Cooled Airjet Cooled Airjet Cooled Airjet Advanced Signal Interpreter Advanced Terrain Scanner Heavy EM Pulse Gun Heavy Ion Cannon Rocket Launcher Remote Datajack Heavy Mace Peak State ------------ > --- POWER ------------ Light Nuclear Core > --- PROPULSION ------- Carbon-fiber Leg Improved Carbon-fiber Leg Wheel Wheel > --- UTILITY ---------- Improved Heat Sink High-capacity Storage Unit High-capacity Storage Unit High-capacity Storage Unit Improved Light Armor Plating > --- WEAPON ----------- Enhanced Autogun Enhanced Autogun > --- INVENTORY -------- Light Nuclear Core Improved Hover Unit Airjet Airjet Airjet Aerolev Unit Gravmag System Medium Storage Unit Advanced Signal Interpreter Advanced Terrain Scanner Core Shielding Medium Reactive Plating Medium Reactive Plating Hacking Suite Hacking Suite Hacking Suite Hacking Suite Heavy EM Pulse Gun Heavy EM Pulse Gun EM Pulse Cannon Heavy Ion Cannon Heavy Ion Cannon Heavy Ion Cannon Enhanced Autogun Enhanced Autogun Grenade Launcher Rocket Launcher Heavy Mace [Rating: 37] Favorites ----------- Power Ion Engine Engine Ion Engine Power Core Light Nuclear Core Propulsion Light Treads Treads Light Treads Leg Aluminum Leg Wheel Wheel Hover Unit Aerolev Unit Utility High-capacity Storage Unit Device Improved Heat Sink Storage High-capacity Storage Unit Processor Targeting Computer Hackware Hacking Suite Protection Core Shielding Weapon Enhanced Autogun Energy Gun Heavy EM Pulse Gun Energy Cannon Heavy Ion Cannon Ballistic Gun Enhanced Autogun Launcher Grenade Launcher Build | -11 -10 -10 -10 -9 -8 -7 ------- Run | Scr Mat Min Exi Min Mat Fac Slots Evolved 6 | . . . . . 4 2 Power 1 | . . . . . . 1 Propulsion 2 | . . . . . 1 1 Utility 3 | . . . . . 3 . Weapon . | . . . . . . . Parts Attached 111 | 6 6 . . . 70 29 Power 12 | 1 3 . . . 5 3 Engine 8 | 1 3 . . . 3 1 Core 4 | . . . . . 2 2 Reactor . | . . . . . . . Propulsion 34 | 2 . . . . 26 6 Treads 25 | 2 . . . . 23 . Leg 5 | . . . . . 1 4 Wheel 2 | . . . . . 1 1 Hover 2 | . . . . . 1 1 Flight . | . . . . . . . Utility 25 | 1 3 . . . 13 8 Device 3 | . . . . . 3 . Storage 9 | 1 3 . . . 4 1 Processor 1 | . . . . . 1 . Hackware 4 | . . . . . . 4 Protection 8 | . . . . . 5 3 Artifact . | . . . . . . . Weapon 40 | 2 . . . . 26 12 Energy Gun 1 | . . . . . 1 . Energy Cannon 4 | . . . . . 3 1 Ballistic Gun 26 | 2 . . . . 16 8 Ballistic Cannon . | . . . . . . . Launcher 9 | . . . . . 6 3 Special Weapon . | . . . . . . . Impact Weapon . | . . . . . . . Slashing Weapon . | . . . . . . . Piercing Weapon . | . . . . . . . Special Melee Weapon . | . . . . . . . Unidentified Prototypes 4 | . . . . . 3 1 Parts Lost 28 | . . . . . 11 17 Power 4 | . . . . . 1 3 Propulsion 12 | . . . . . 6 6 Utility 8 | . . . . . 4 4 Weapon 4 | . . . . . . 4 Highest Loss Streak 6 | . . . . . 3 6 Average Slot Usage (%) 94 | . 94 100 100 100 95 79 Engine 8 | . 14 14 14 14 7 . Treads 22 | . 28 28 28 28 25 . Leg 2 | . . . . . . 17 Wheel 1 | . . . . . . 6 Device 4 | . . . . . 7 3 Storage 26 | . 22 28 28 28 27 22 Protection 4 | . . . . . 7 6 Ballistic Gun 20 | . 28 28 28 28 16 13 Naked Turns . | . . . . . . . Heaviest Build 125 | 11 41 41 41 41 123 125 Greatest Support 66 | 40 40 40 40 40 66 38 Greatest Overweight (x) 12 | . 1 1 1 1 11 12 Average Overweight (x) 2 | . . 1 1 1 1 9 Largest Inventory Capacity 28 | 6 16 16 16 16 28 28 Average Capacity 22 | 5 9 16 16 16 26 27 Most Carried 28 | 4 11 14 15 16 28 28 Average Carried 21 | 1 8 10 14 15 26 27 Final Capacity 28 | 6 16 16 16 16 28 16 Final Carried 28 | 4 10 14 15 16 28 15 Class Distribution -------------------- 65% | Hauler-Mutant 34% | Mutant Dominant Class ---------------- Mutant | -10/Materials Mutant | -10/Mines Mutant | -10/Exiles Mutant | -9/Mines Hauler-Mutant | -8/Materials Hauler-Mutant | -7/Factory Resources | -11 -10 -10 -10 -9 -8 -7 ----------- Run | Scr Mat Min Exi Min Mat Fac Matter Collected 3088 | 200 242 71 . . 2044 531 Remotely . | . . . . . . . Salvage Created 5112 | . 349 86 . . 3598 1079 Parts 262 | . 24 6 . . 173 59 Haulers Intercepted 6 | . 1 . . . 5 . Recyclers Shooed 3 | . 1 1 . . . 1 Parts Field Recycled . | . . . . . . . Retrieved Matter . | . . . . . . . Parts Self-Destructed . | . . . . . . . Prevented . | . . . . . . . Kills | -11 -10 -10 -10 -9 -8 -7 ------- Run | Scr Mat Min Exi Min Mat Fac Combat Hostiles Destroyed 90 | . 6 2 . . 57 25 Guns 64 | . 6 2 . . 38 18 Cannons 4 | . . . . . 4 . AOE 22 | . . . . . 15 7 Classes Destroyed 16 | . 3 . . . 10 3 Worker 5 | . . . . . 4 1 Builder 8 | . . . . . 4 4 Tunneler 2 | . . . . . 2 . Hauler 6 | . 1 . . . 5 . Recycler 2 | . . . . . 2 . Mechanic 3 | . . . . . 3 . Operator 7 | . 2 . . . 5 . Watcher 6 | . . . . . 5 1 Swarmer 4 | . . . . . . 4 Grunt 65 | . 6 2 . . 41 16 Brawler 2 | . . . . . 2 . Duelist 5 | . . . . . 4 1 Protector 1 | . . . . . . 1 Sentry 9 | . . . . . 7 2 Hunter 3 | . . . . . 3 . Programmer 1 | . . . . . . 1 Best Kill Streak 13 | . 2 2 . . 13 10 Combat Bots Only 8 | . 2 2 . . 8 5 Max Kills in Single Turn 4 | . 1 1 . . 4 4 Gunslinging 1 | . . . . . 1 . Exploded 3 | . . . . . 3 3 Melee . | . . . . . . . Uniques/NPCs Destroyed . | . . . . . . . Combat | -11 -10 -10 -10 -9 -8 -7 -------- Run | Scr Mat Min Exi Min Mat Fac Damage Taken 6259 | . 302 94 . . 3305 2558 Core 931 | . 58 15 . . 327 531 Absorbed by Shields . | . . . . . . . Core Remaining (%) 70 | 100 . . . 70 40 . Volleys Fired 386 | . 27 7 . . 235 117 Largest 2 | . 2 2 . . 2 2 Hottest 90 | . 40 40 . . 90 88 Shots Fired 728 | . 54 14 . . 469 191 Gun 668 | . 54 14 . . 417 183 Cannon 40 | . . . . . 39 1 Launcher 20 | . . . . . 13 7 Special . | . . . . . . . Kinetic 666 | . 54 14 . . 415 183 Thermal 28 | . . . . . 28 . Explosive 20 | . . . . . 13 7 Electromagnetic 14 | . . . . . 13 1 Robot Hit Streak 19 | . 14 7 . . 15 19 Robot Miss Streak 5 | . 2 1 . . 3 5 Penetration Max . | . . . . . . . Secondary Targets 7 | . . . . . 5 2 Max Gunslinging Chain 1 | . . . . . 1 1 Shots Hit Robots 523 | . 39 12 . . 336 136 Core Hits 264 | . 19 5 . . 168 72 Critical Hits 6 | . . . . . 4 2 Critical Kills 3 | . . . . . 2 1 Critical Parts Destroyed 3 | . . . . . 2 1 Melee Attacks . | . . . . . . . Impact . | . . . . . . . Slashing . | . . . . . . . Piercing . | . . . . . . . Sneak Attacks . | . . . . . . . Combat Hostiles . | . . . . . . . Follow-up Attacks . | . . . . . . . Damage Inflicted 11778 | . 498 153 . 17 7662 3448 Guns 7739 | . 491 145 . . 4910 2193 Cannons 860 | . . . . . 820 40 Explosions 3100 | . . . . . 1885 1215 Melee . | . . . . . . . Ramming 79 | . 7 8 . 17 47 . Kinetic 7683 | . 491 145 . . 4854 2193 Thermal 663 | . . . . . 663 . Explosive 3007 | . . . . . 1792 1215 Electromagnetic 346 | . . . . . 306 40 Impact . | . . . . . . . Slashing . | . . . . . . . Piercing . | . . . . . . . Highest Corruption 8 | . . . . . . 8 Average Corruption 4 | . . . . . . 4 Corruption Purged . | . . . . . . . Effects 14 | . . . . . . 14 Message Errors 3 | . . . . . . 3 Heat Flow Errors 3 | . . . . . . 3 Energy Discharges 3 | . . . . . . 3 Targeting Errors 5 | . . . . . . 5 Overload Shots . | . . . . . . . Overflow Damage 79 | . . . . . 41 38 Projectiles . | . . . . . . . Explosions 79 | . . . . . 41 38 Melee . | . . . . . . . Knockbacks 1 | . . . . . 1 . Impact 1 | . . . . . 1 . Kinetic . | . . . . . . . Secondary . | . . . . . . . Self-Inflicted Damage 87 | . . . . . 87 . Shots 1 | . . . . . 1 . Rammed 9 | . 2 2 . 1 4 . Targets Rammed 9 | . 2 2 . 1 4 . Kicked . | . . . . . . . Crushed . | . . . . . . . Highest Temperature 260 | . 2 2 . . 163 260 Average Temperature 44 | . 2 2 . . 41 66 Received Heat Transfer 2436 | . 138 54 . . 1413 831 Siege Activations . | . . . . . . . Robots Corrupted . | . . . . . . . Combat Hostiles . | . . . . . . . Parts Fried 2 | . . . . . 2 . Impact Corruptions . | . . . . . . . Robots Melted . | . . . . . . . Combat Hostiles . | . . . . . . . Parts Melted 2 | . . . . . 2 . Heat Transferred 877 | . . . . . 877 . Parts Sabotaged . | . . . . . . . Parts Stolen . | . . . . . . . Parts Stripped . | . . . . . . . Power Chain Reactions . | . . . . . . . Missiles Intercepted . | . . . . . . . Alert | -11 -10 -10 -10 -9 -8 -7 ------- Run | Scr Mat Min Exi Min Mat Fac Peak Influence 1541 | . 124 50 . . 1541 944 Initial 700 | . . 48 . . . 700 Average 546 | . 72 46 . . 765 809 Maximum Alert Level 4 | . . . . . 4 3 Low Security (%) 41 | 100 100 100 . 100 19 . Level 1 7 | . . . . . 14 . Level 2 7 | . . . . . 10 12 Level 3 19 | . . . . . 10 87 Level 4 24 | . . . . . 45 . Level 5 . | . . . . . . . High Security . | . . . . . . . Max Security . | . . . . . . . Squads Dispatched 22 | . 1 1 . . 12 8 Investigation 5 | . . 1 . . 2 2 Extermination 1 | . . . . . . 1 Reinforcement 7 | . 1 . . . 5 1 Assault 6 | . . . . . 4 2 Garrison 3 | . . . . . 1 2 Intercept . | . . . . . . . Construction Impeded 2 | . . . . . 1 1 Haulers Reinforced . | . . . . . . . Stealth | -11 -10 -10 -10 -9 -8 -7 --------- Run | Scr Mat Min Exi Min Mat Fac Distress Signals 9 | . 1 . . . 8 . Communications Jammed . | . . . . . . . Distress Signals . | . . . . . . . Times Spotted 156 | . 13 2 . . 102 39 Peak Tracking Total 11 | . 3 1 . . 11 9 Tactical Retreats 7 | . . . . . 5 2 Traps | -11 -10 -10 -10 -9 -8 -7 ------- Run | Scr Mat Min Exi Min Mat Fac Traps Triggered 10 | . 1 . . . 5 4 Indirectly . | . . . . . . . Trap Hack Attempts . | . . . . . . . Triggered . | . . . . . . . Disarmed . | . . . . . . . Reprogrammed . | . . . . . . . Reused . | . . . . . . . Traps Extracted . | . . . . . . . Installed . | . . . . . . . Triggered . | . . . . . . . Machines | -11 -10 -10 -10 -9 -8 -7 ---------- Run | Scr Mat Min Exi Min Mat Fac Machines Disabled 8 | . . . . . 8 . Max in Single Turn 2 | . . . . . 2 . Garrison Access 1 | . . . . . 1 . Machines Sabotaged . | . . . . . . . Garrisons Compromised . | . . . . . . . Overloaded Fab Kills . | . . . . . . . Fab Network Shutdowns . | . . . . . . . Hacking | -11 -10 -10 -10 -9 -8 -7 --------- Run | Scr Mat Min Exi Min Mat Fac Machines Accessed 13 | . 3 1 1 . 6 2 Terminals 8 | . 3 . . . 3 2 Fabricators . | . . . . . . . Repair Stations 2 | . . . . . 2 . Recycling Units . | . . . . . . . Scanalyzers . | . . . . . . . Garrison Access 1 | . . . . . 1 . Total Hacks 34 | . 10 1 5 . 14 4 Successful 27 | . 8 1 5 . 11 2 Failed 6 | . 1 . . . 3 2 Catastrophic 1 | . . . . . . 1 Database Lockouts 1 | . 1 . . . . . Manual 13 | . 10 . . . . 3 Terminals 19 | . 10 . . . 5 4 Fabricators . | . . . . . . . Repair Stations 7 | . . . . . 7 . Recycling Units . | . . . . . . . Scanalyzers . | . . . . . . . Garrison Access 2 | . . . . . 2 . Terminal Hacks 14 | . 3 1 5 . 4 1 Record 5 | . . . 5 . . . Part Schematic 1 | . . . . . . 1 Prototype ID Bank 3 | . 1 . . . 2 . Open Door 1 | . . 1 . . . . Branch Access Points 1 | . . . . . 1 . Locate Traps 2 | . 2 . . . . . Hauler Manifests 1 | . . . . . 1 . Fabricator Hacks . | . . . . . . . Repair Station Hacks 6 | . . . . . 6 . Scan Component 3 | . . . . . 3 . Repair 3 | . . . . . 3 . Recycling Unit Hacks . | . . . . . . . Scanalyzer . | . . . . . . . Garrison Access Hacks 1 | . . . . . 1 . Seal Access 1 | . . . . . 1 . Unauthorized Hacks 6 | . 5 . . . . 1 Terminals 6 | . 5 . . . . 1 Track 2 | . 1 . . . . 1 Botnet 3 | . 3 . . . . . Operators 1 | . 1 . . . . . Fabricators . | . . . . . . . Repair Stations . | . . . . . . . Recycling Units . | . . . . . . . Scanalyzers . | . . . . . . . Garrison Access . | . . . . . . . Data Cores Recovered 1 | . 1 . . . . . Used . | . . . . . . . Hacking Detections 9 | . 3 . . . 4 2 Full Trace Events 2 | . . . . . 1 1 Feedback Events . | . . . . . . . Feedback Blocked . | . . . . . . . Robot Schematics Acquired . | . . . . . . . Robots Built . | . . . . . . . Matter . | . . . . . . . Time . | . . . . . . . Total Robot Build Rating . | . . . . . . . Part Schematics Acquired 1 | . . . . . . 1 Parts Built . | . . . . . . . Matter . | . . . . . . . Time . | . . . . . . . Total Part Build Rating . | . . . . . . . Parts Repaired 3 | . . . . . 3 . Time 112 | . . . . . 112 . Parts Recycled . | . . . . . . . Recycled Matter . | . . . . . . . Retrieved Matter . | . . . . . . . Retrieved Components . | . . . . . . . Parts Scanalyzed . | . . . . . . . Part Schematics Acquired . | . . . . . . . Parts Damaged . | . . . . . . . Bothacking | -11 -10 -10 -10 -9 -8 -7 ------------ Run | Scr Mat Min Exi Min Mat Fac Used RIF Installer . | . . . . . . . Robots Hacked . | . . . . . . . Non-combat . | . . . . . . . Combat . | . . . . . . . Robot Hacks Applied . | . . . . . . . Relay Couplers Released . | . . . . . . . Robots Rewired . | . . . . . . . Allies Hacked . | . . . . . . . Hacks Repelled . | . . . . . . . Allies | -11 -10 -10 -10 -9 -8 -7 -------- Run | Scr Mat Min Exi Min Mat Fac Total Allies 2 | . . . . 2 . . Largest Group 2 | . . . . 2 2 . Highest-Rated Group 40 | . . . . 40 40 . Highest-Rated Ally 31 | . . . . 31 31 . Total Orders . | . . . . . . . Ally Attacks 2 | . . . . . 2 . Total Damage 21 | . . . . . 21 . Kills . | . . . . . . . Allies Corrupted . | . . . . . . . Allies Melted . | . . . . . . . Intel | -11 -10 -10 -10 -9 -8 -7 ------- Run | Scr Mat Min Exi Min Mat Fac Robot Analysis Total . | . . . . . . . Derelict Logs Recovered 1 | . . . . 1 . . Drone Launches . | . . . . . . . Drone Recoveries . | . . . . . . . Exploration | -11 -10 -10 -10 -9 -8 -7 ------------- Run | Scr Mat Min Exi Min Mat Fac Turns Passed 6894 | 73 759 610 383 589 3484 996 Spaces Moved 3209 | 40 392 323 213 325 1560 356 Core 3 | 3 . . . . . . Treads 2783 | 37 392 323 213 325 1493 . Legs 9 | . . . . . . 9 Wheels 414 | . . . . . 67 347 Hover . | . . . . . . . Flight . | . . . . . . . Fastest Speed 50 | 50 160 180 180 180 145 130 Average Speed 175 | 151 164 180 180 180 174 182 Slowest Speed 270 | 160 180 180 180 180 200 270 Overloaded Moves . | . . . . . . . Propulsion Burnouts . | . . . . . . . Robots Hopped . | . . . . . . . Cave-ins Triggered . | . . . . . . . Exploration Rate (%) 52 | 3 67 65 58 78 87 10 Regions Visited 6 Branch Regions 3 Pre-discovered Areas 1 | . . . 1 . . . Known Exits Taken . | . . . . . . . Unknown Exits Taken 6 | 1 1 1 1 1 1 . Scrap Searched 3 | . . 1 . 2 . . Spaces Dug . | . . . . . . . Terrain Destroyed 145 | . . . . . 125 20 Melee . | . . . . . . . Projectile 8 | . . . . . 7 1 AOE 137 | . . . . . 118 19 Terrain Rammed . | . . . . . . . Walls Destroyed . | . . . . . . . Machines Disabled . | . . . . . . . Actions | -11 -10 -10 -10 -9 -8 -7 --------- Run | Scr Mat Min Exi Min Mat Fac Total 3988 | 49 455 336 213 330 2015 590 Wait 139 | . 10 1 . 2 64 62 Move 3203 | 39 391 322 212 324 1559 356 Hop . | . . . . . . . Pick Up 67 | 4 10 4 1 2 36 10 Fast Attach 38 | 6 1 . . . 24 7 Attach 22 | . . . . . 8 14 Detach 4 | . . . . . 3 1 Swap 52 | . 5 . . . 39 8 Drop 68 | . 9 . . 1 43 15 Fire 386 | . 27 7 . . 235 117 Melee . | . . . . . . . Ram . | . . . . . . . Kick . | . . . . . . . Crush 9 | . 2 2 . 1 4 . Escape Stasis . | . . . . . . . Rewire . | . . . . . . . Trap . | . . . . . . . Miscellaneous . | . . . . . . . Route ------- -11/Scrapyard -10/Materials (discovered 3 exits: [*Mat x2] / *Min) -10/Mines (discovered 2 exits: [*Mat] / *Exi) -10/Exiles -9/Mines -8/Materials (discovered 3 exits: *Fac x3) -7/Factory History --------- Turn | Location | Event 48 | -11/Scrapyard | Discovered new exit (range 16) 74 | -11/Scrapyard | Entered Materials 221 | -10/Materials | Discovered new exit (range 16) 261 | -10/Materials | Central database locked down 315 | -10/Materials | Build established: Mutant 505 | -10/Materials | Discovered new exit (range 16) 749 | -10/Materials | Discovered new exit (range 5) 833 | -10/Materials | Entered Mines 835 | -10/Mines | Met a Derelict bent on vengeance 1130 | -10/Mines | Discovered new exit (range 15) 1306 | -10/Mines | Met a Derelict shopkeep closing up shop 1434 | -10/Mines | Deemed a non-threat by the Exiles lab entrance 1435 | -10/Mines | Discovered new exit (range 5) 1443 | -10/Mines | Entered Exiles 1488 | -10/Exiles | Met 8R-AWN 1517 | -10/Exiles | Met EX-HEX 1586 | -10/Exiles | Met EX-DEC 1598 | -10/Exiles | Learned location of Zion (-6) 1804 | -10/Exiles | Discovered new exit (range 14) 1826 | -10/Exiles | Entered Mines 1931 | -9/Mines | Learned 2 Materials zone layouts 2384 | -9/Mines | Discovered new exit (range 15) 2415 | -9/Mines | Entered Materials 2415 | -8/Materials | Accompanied by 2 allies 2415 | -8/Materials | Evolved 4 slots: Propulsion x1, Utility x3 2420 | -8/Materials | Led the pair of lost Derelicts to an unsafe place 2525 | -8/Materials | Repaired Lgt. Treads 2703 | -8/Materials | Build established: Hauler-Mutant 3011 | -8/Materials | Discovered new exit (range 15) 3587 | -8/Materials | Discovered new exit (range 15) 3642 | -8/Materials | Garrison activated, responded to threat 4015 | -8/Materials | First assault squad dispatched 4163 | -8/Materials | Lost 3 parts (2n1u) 4446 | -8/Materials | Repaired Lgt. Treads 4510 | -8/Materials | Repaired Enh. Autogun 5656 | -8/Materials | Core integrity fell below 50% 5687 | -8/Materials | Destroyed 8 combat bots 5800 | -8/Materials | Discovered new exit (range 16) 5899 | -8/Materials | Entered Factory 5899 | -7/Factory | Evolved 2 slots: Power x1, Propulsion x1 6024 | -7/Factory | Lost 4 parts (2p2w) 6299 | -7/Factory | First assault squad dispatched 6750 | -7/Factory | Garrison activated, responded to threat 6811 | -7/Factory | Lost 3 parts (2n1w) 6854 | -7/Factory | Core integrity fell below 50% 6895 | -7/Factory | Self-destructed Last Messages --------------- 06883_ R-06 Scavenger collects Aluminum Leg. 06884_ Slug penetrates Wall. 06887_ Dropped Hvy. Ion Cannon. 06887_ Dropped Grenade Launcher. 06887_ Slug penetrates Wall. 06887_ Imp. Carbon-fiber Leg destroyed. 06888_ Dropped EM Pulse Cannon. 06888_ EM Pulse Cannon crushed and broken. 06888_ Dropped Hvy. Ion Cannon. 06888_ Hvy. Ion Cannon crushed and broken. 06889_ Dropped Hvy. EM Pulse Gun. 06889_ Hvy. EM Pulse Gun crushed and broken. 06889_ Dropped Hcp. Storage Unit. 06889_ Hcp. Storage Unit crushed and broken. 06890_ Slug penetrates Wall. 06893_ Hacking Suite destroyed. 06893_ System corrupted by crushing effect (+4). 06893_ Slug penetrates Wall. 06894_ Dropped Hcp. Storage Unit. 06894_ Hcp. Storage Unit crushed and broken. Map ----- +----------------------------------------------------+ | ??????????# # #??????????????????? | | ??????????# #* #??????????????????? | | ??????????# + """????????????????????? | | ??????????# # """""????????????????????? | | ??????????# # *[[ """??????????????????????? | | ??????????# # *[ ????????????????????? | | ??????????# # [[ """ ???????????????????? | | ??????????# # """"?????????????????????? | | ??????????# # """"?????????????????????? | | ??????????# # ??????????????????????? | | ??????????# # ??????????????????????? | | ??????????# ############?????????????????????? | | ????????### ###??????????????????????????????? | | ????????# #??????????????????????????????? | | ??###+""" #??????????????????????????????? | | #????" "??????????????????????? | | %# "" "??????????????????????? | | / """ ???????????????????????? | | # """ ???????????????????????? | | # """ ???????????????????????? | | #"" #? ???????????????????????? | | " #?? ??????????????????????? | | !!" #??? ?????????????????????? | | ?!" = #??? ????????????????????? | | ??# % r[u##########+#####???????????????? | | ??# = % igYggb@!%*!]k +??????????? | | ??# ###########+#####???????????????? | | ??# %!%*= #???????????????????????????????? | | ??# %=% #???????????????????????????????? | | ??# *= #???????????????????????????????? | | ??####"""" !== #???????????????????????????????? | | ?????#""""""#/#########??????????????????????????? | | ?????# = = #??????????????????????????? | | ?????# """"" """"" #??????????????????????????? | | ?????# """"" """"" #??????????????????????????? | | ?????# """ """ #??????????????????????????? | | ?????# #??????????????????????????? | | ?????# """"" """"" #??????????????????????????? | | ?????# """"" """"" ???????????????????????????? | | ?????# """ """ ???????????????????????????? | | ?????# ! ?? ????????????????????????????? | | ????????########?????????????????????????????????? | | ?????????????????????????????????????????????????? | | ?????????????????????????????????????????????????? | | ?????????????????????????????????????????????????? | | ?????????????????????????????????????????????????? | | ?????????????????????????????????????????????????? | | ?????????????????????????????????????????????????? | | ?????????????????????????????????????????????????? | | ?????????????????????????????????????????????????? | +----------------------------------------------------+ Best States ------------- Heat Dissipation 48 Energy Generation 14 Energy Capacity 265 Matter Stores 300 Matter Capacity 300 Sight Range 16 Terrain Scan Density 10 Base Temperature (-) 100 Armor Coverage 600 Resistance: KI 30 Core Shielding 20 Propulsion Shielding 66 Utility Shielding 66 Evasion (%) 40 Targeting Accuracy 5 Recoil Reduction 3 Offensive Hacking 10 Item Schematics ----------------- Cmb. Airjet | -7/Factory | Hacked Robot Schematics ------------------ None Fabricated ------------ Nothing Alien Tech Used ----------------- None Achievements -------------- None Challenges ------------ None Game ------ Seed EtherialLatentTerrabomb Manual? 0 Play Time 01:08:55 Cumulative 180.7 hours Start 2020.10.29 @ 20:23:35 End 2020.10.29 @ 23:48:26 Sessions 3 Manual Loads 0 Difficulty Rogue Special Mode Halloween2020/ForbiddenLore Game No. 112 Rogue 112 Adventurer 0 Explorer 0 Win Type - Total 4 Types 3/0/1/0/0/0/0/0/0 Lore% 69 Gallery% 82 Achievement% 69 Wizard Run 0 Options --------- ASCII 0 Keyboard 1 Movement Numpad Keybinds 0 Fullscreen 2 Font 12/Terminus Map View 83x54 Tactical HUD 1 Map Filters NONE Filters NONE Steam 1 RUN: 424d06e7-9636-4c05-979a-fe1df58e7c9a